bitfinex-derivatives/quotes_BTCF0:USTF0_20250212
["timestamp","ask_amount","ask_price","bid_price","bid_amount"]
[1739367547205,0.18025832,94437.0,94418.0,0.3608]
[1739367547616,0.3538,94435.0,94412.0,0.3608]
[1739367547820,0.3608,94427.0,94418.0,0.00015882]
[1739367548006,0.18035932,94437.0,94387.0,0.3608]
[1739367548007,0.3608,94419.0,94387.0,0.3608]
[1739367548203,0.3608,94419.0,94372.0,0.3608]
[1739367548204,0.29815353,94400.0,94372.0,0.3608]
[1739367548500,0.29815353,94400.0,94346.0,0.3608]
[1739367548501,0.3608,94377.0,94346.0,0.3608]
[1739367548715,0.3608,94377.0,94346.0,0.30958354]
[1739367549107,0.2119341,94374.0,94335.0,0.3608]
[1739367549416,0.3588,94366.0,94352.0,0.0001589]
[1739367549808,0.3608,94355.0,94352.0,0.0001589]
[1739367550006,0.3528,94355.0,94352.0,0.0001589]
[1739367550514,0.3528,94355.0,94321.0,0.3608]
[1739367550714,0.3608,94328.0,94321.0,0.3608]
[1739367550909,0.3608,94339.0,94321.0,0.3608]
[1739367551316,0.3608,94331.0,94321.0,0.3608]
[1739367551609,0.3608,94323.0,94302.0,0.30958413]
[1739367551914,0.3608,94312.0,94302.0,0.30958413]
[1739367552319,0.3608,94312.0,94303.0,0.000159]
[1739367553316,0.000159,94317.0,94303.0,0.000159]
[1739367553510,0.001,94312.0,94311.0,0.3608]
[1739367553812,0.3608,94358.0,94311.0,0.3608]
[1739367554110,0.78348,94441.0,94303.0,0.000159]
[1739367554111,0.3608,94378.0,94346.0,0.3608]
[1739367554313,0.3608,94407.0,94370.0,0.7216]
[1739367554513,0.4093,94416.0,94392.0,0.3608]
[1739367554708,0.4093,94416.0,94402.0,0.3608]
[1739367554914,0.4093,94416.0,94410.0,0.3608]
[1739367556614,0.00015891,94418.0,94413.0,0.3608]
[1739367556819,0.002,94416.0,94413.0,0.3608]
[1739367557316,0.001,94416.0,94413.0,0.3608]
[1739367557620,0.29815353,94460.0,94413.0,0.3608]
[1739367557918,0.4086,94461.0,94440.0,0.3608]
[1739367558109,0.4086,94461.0,94423.0,0.3608]
[1739367558110,0.29815353,94440.0,94423.0,0.3608]
[1739367558312,0.3608,94430.0,94413.0,0.30799388]
[1739367558514,0.001,94416.0,94413.0,0.30799388]
[1739367559010,0.001,94416.0,94413.0,0.31499388]
[1739367559210,0.00010084,94424.0,94413.0,0.31499388]
[1739367559514,0.00010084,94424.0,94423.0,0.3608]
[1739367559819,1.2808146,94472.0,94423.0,0.3678]
[1739367560016,0.29815353,94460.0,94450.0,0.3608]
[1739367560215,0.29815353,94460.0,94447.0,0.3608]
[1739367560420,0.3608,94453.0,94438.0,0.3608]
[1739367560622,0.3608,94453.0,94423.0,0.015]
[1739367560623,0.3608,94441.0,94423.0,0.015]
[1739367560921,0.3608,94429.0,94423.0,0.022]
[1739367561223,0.2118209,94425.0,94397.0,0.3608]
[1739367561414,0.2606,94440.0,94409.0,0.3608]
[1739367561607,0.2606,94440.0,94420.0,0.3608]
[1739367561813,0.2118182,94426.0,94423.0,0.015]
[1739367562022,0.3608,94424.0,94423.0,0.015]
[1739367562216,0.2118485,94413.0,94409.0,0.3608]
[1739367562421,0.565653,94410.0,94391.0,0.3608]
[1739367562722,0.565653,94410.0,94378.0,0.0015893]
[1739367562723,0.3608,94398.0,94378.0,0.0015893]
[1739367562925,0.3608,94398.0,94391.0,0.00015882]
[1739367563218,0.6538,94398.0,94378.0,0.0015893]
[1739367563418,0.2119205,94380.0,94378.0,0.0015893]
[1739367563627,0.3538,94391.0,94378.0,0.0015893]
[1739367563924,0.3538,94391.0,94371.0,0.30958318]
[1739367564226,0.2118912,94393.0,94371.0,0.30958318]
[1739367564518,0.3608,94379.0,94372.0,0.00015891]
[1739367564727,0.2119104,94385.0,94372.0,0.00015891]
[1739367564929,0.00015891,94397.0,94382.0,0.3608]
[1739367565220,0.001,94391.0,94390.0,0.3608]
[1739367565924,0.2129099,94385.0,94372.0,0.00015891]
[1739367566527,0.002,94391.0,94380.0,0.3608]
[1739367566920,0.2119137,94384.0,94372.0,0.00015891]
[1739367567124,0.2119331,94375.0,94372.0,0.00015891]
[1739367569228,0.2119697,94359.0,94351.0,0.00158977]
[1739367569524,0.2119744,94357.0,94351.0,0.00158977]
[1739367569726,0.2119828,94353.0,94351.0,0.00158977]
[1739367569927,0.2119828,94353.0,94339.0,0.30958365]
[1739367570121,0.3608,94375.0,94339.0,0.30958365]
[1739367570122,0.3608,94365.0,94339.0,0.30958365]
[1739367570524,0.2119731,94357.0,94339.0,0.30958365]
[1739367570821,0.2120104,94340.0,94337.0,0.00015891]
[1739367571025,0.2119827,94353.0,94339.0,0.3608]
[1739367571223,0.001,94353.0,94339.0,0.3608]
[1739367571619,0.001,94353.0,94347.0,0.3608]
[1739367572015,0.001,94353.0,94339.0,0.3608]
[1739367572222,0.001,94353.0,94337.0,0.00015891]
[1739367572434,0.002,94353.0,94337.0,0.00015891]
[1739367572728,0.3608,94350.0,94337.0,0.00015891]
[1739367572916,0.3608,94350.0,94325.0,0.30815279]
[1739367573120,0.001,94340.0,94325.0,0.30815279]
[1739367573824,0.001,94350.0,94334.0,0.3608]
[1739367574015,0.001,94350.0,94342.0,0.3608]
[1739367574621,0.001,94353.0,94342.0,0.3608]
[1739367574822,0.001,94353.0,94350.0,0.3608]
[1739367575028,0.65895353,94390.0,94350.0,0.3608]
[1739367575029,0.2119072,94386.0,94350.0,0.3608]
[1739367575216,0.2119072,94386.0,94362.0,0.3608]
[1739367575421,0.3608,94381.0,94362.0,0.3608]
[1739367575621,0.3608,94381.0,94350.0,0.3608]
[1739367575622,0.3608,94364.0,94350.0,0.3608]
[1739367575822,0.2119657,94360.0,94338.0,0.3608]
[1739367576031,0.001,94353.0,94348.0,0.3608]
[1739367576422,0.001,94350.0,94348.0,0.3608]
[1739367577322,0.000159,94358.0,94348.0,0.3608]
[1739367577726,0.001,94353.0,94348.0,0.3618]
[1739367577933,0.000159,94358.0,94350.0,0.3608]
[1739367578121,0.3608,94384.0,94350.0,0.3608]
[1739367578323,0.51007523,94380.0,94350.0,0.3608]
[1739367578519,0.001,94353.0,94350.0,0.3608]
[1739367579132,0.001,94358.0,94350.0,0.30799388]
[1739367579628,0.002,94358.0,94350.0,0.30799388]
[1739367579928,0.001,94353.0,94350.0,0.60799388]
[1739367580129,0.3608,94384.0,94350.0,0.30799388]
[1739367580323,0.001,94358.0,94350.0,0.30799388]
[1739367580516,0.003,94358.0,94350.0,0.30799388]
[1739367580723,0.3608,94404.0,94357.0,0.3608]
[1739367580931,0.3608,94404.0,94391.0,0.3608]
[1739367581128,0.001,94384.0,94380.0,0.3608]
[1739367581832,0.001,94384.0,94361.0,0.00158961]
[1739367581833,0.2119254,94378.0,94361.0,0.00158961]
[1739367582131,0.3608,94381.0,94373.0,0.0001589]
[1739367582321,0.3608,94383.0,94373.0,0.0001589]
[1739367582523,0.3608,94374.0,94373.0,0.0001589]
[1739367582732,0.3608,94383.0,94373.0,0.0001589]
[1739367583036,0.3608,94374.0,94373.0,0.0001589]
[1739367583623,0.3608,94374.0,94373.0,0.0121589]
[1739367583830,0.2119561,94365.0,94332.0,0.3608]
[1739367584025,0.3608,94343.0,94332.0,0.3608]
[1739367584532,0.3488,94343.0,94332.0,0.3608]
[1739367584921,0.3608,94354.0,94329.0,0.3608]
[1739367585127,0.000159,94347.0,94330.0,0.29815353]
[1739367585435,0.001,94343.0,94338.0,0.3608]
[1739367585623,0.000159,94347.0,94338.0,0.3608]
[1739367585824,0.001,94374.0,94346.0,0.3608]
[1739367586027,0.001,94354.0,94346.0,0.3608]
[1739367586228,0.001,94354.0,94339.0,0.3953]
[1739367586619,0.3608,94363.0,94339.0,0.3953]
[1739367586817,0.001,94347.0,94339.0,0.3953]
[1739367587931,0.001,94347.0,94339.0,0.6953]
[1739367588140,0.000159,94356.0,94346.0,0.60799388]
[1739367588339,0.000159,94356.0,94346.0,0.60614741]
[1739367588639,0.002,94363.0,94346.0,0.60614741]
[1739367589027,0.001,94347.0,94346.0,0.60614741]
[1739367589324,0.3608,94377.0,94346.0,0.90614741]
[1739367589525,0.3608,94377.0,94346.0,0.60614741]
[1739367589733,0.001,94356.0,94346.0,0.61314741]
[1739367590536,0.001,94356.0,94346.0,0.31499388]
[1739367590727,0.001,94356.0,94346.0,0.007]
[1739367591228,0.001,94356.0,94337.0,0.000159]
[1739367591537,0.002,94363.0,94348.0,0.3608]
[1739367591921,0.3608,94360.0,94346.0,0.007]
[1739367592634,0.3608,94360.0,94340.0,0.3608]
[1739367592836,0.002,94356.0,94340.0,0.3608]
[1739367593330,0.002,94356.0,94346.0,0.007]
[1739367593533,0.3608,94360.0,94346.0,0.007]
[1739367593733,0.3628,94360.0,94348.0,0.3608]
[1739367594239,0.002,94360.0,94350.0,0.29815353]
[1739367594533,0.3608,94382.0,94359.0,0.3608]
[1739367594731,0.3608,94360.0,94346.0,0.007]
[1739367595038,0.3608,94347.0,94346.0,0.007]
[1739367595436,0.3608,94347.0,94305.0,0.3608]
[1739367595437,0.5727948,94347.0,94340.0,0.002]
[1739367595743,0.3608,94345.0,94305.0,0.3608]
[1739367596047,0.3588,94328.0,94305.0,0.3608]
[1739367596338,0.3588,94328.0,94313.0,0.3608]
[1739367596641,0.3568,94328.0,94313.0,0.3608]
[1739367596942,0.3568,94328.0,94318.0,0.000159]
[1739367597242,0.3568,94328.0,94304.0,0.3608]
[1739367597534,0.3608,94319.0,94304.0,0.3608]
[1739367597734,0.3608,94319.0,94300.0,0.1]
[1739367597930,0.3608,94313.0,94300.0,0.1]
[1739367598130,0.3608,94301.0,94300.0,0.1]
[1739367598639,0.3608,94301.0,94291.0,0.000159]
[1739367598829,0.3608,94292.0,94291.0,0.000159]
[1739367599032,0.2121325,94286.0,94283.0,0.31479951]
[1739367599230,0.3608,94284.0,94273.0,0.37849217]
[1739367599531,0.5669589,94274.0,94273.0,0.37849217]
[1739367599732,0.2121696,94270.0,94254.0,0.00159131]
[1739367599936,0.7216,94255.0,94254.0,0.00159131]
[1739367600329,0.7216,94255.0,94253.0,0.00015909]
[1739367600533,0.7216,94255.0,94251.0,0.37751847]
[1739367601941,0.7216,94255.0,94244.0,0.00015909]
[1739367602133,0.3608,94245.0,94244.0,0.00015909]
[1739367603133,0.00015909,94271.0,94244.0,0.30015909]
[1739367603337,0.2121214,94291.0,94270.0,0.30799388]
[1739367603644,0.29815353,94290.0,94270.0,0.30799388]
[1739367603832,0.3608,94292.0,94258.0,0.3608]
[1739367603833,0.3608,94272.0,94258.0,0.3608]
[1739367604041,0.2121716,94269.0,94247.0,0.3608]
[1739367604639,0.00015909,94267.0,94260.0,0.3608]
[1739367605338,0.2120983,94301.0,94266.0,0.3608]
[1739367605538,0.29815353,94290.0,94266.0,0.3608]
[1739367605841,0.3608,94284.0,94266.0,0.3608]
[1739367606045,0.3608,94301.0,94266.0,0.3608]
[1739367606346,0.001,94291.0,94284.0,0.30799388]
[1739367606852,0.001,94290.0,94274.0,0.00015909]
[1739367607040,0.29915353,94290.0,94274.0,0.00015909]
[1739367607350,0.29815353,94290.0,94268.0,0.3608]
[1739367607943,0.29815353,94290.0,94280.0,0.3608]
[1739367608142,0.001,94290.0,94276.0,0.3608]
[1739367608448,0.29915353,94290.0,94276.0,0.3608]
[1739367609135,0.3608,94283.0,94273.0,0.00015909]
[1739367609339,0.3608,94274.0,94257.0,0.30815297]
[1739367610334,0.001,94283.0,94265.0,0.3608]
[1739367610539,0.29815353,94280.0,94265.0,0.3608]
[1739367610947,0.001,94274.0,94265.0,0.3608]
[1739367611741,0.001,94274.0,94273.0,0.3608]
[1739367612048,0.001,94274.0,94265.0,0.3608]
[1739367612444,0.29815353,94290.0,94265.0,0.30799388]
[1739367612644,0.001,94283.0,94265.0,0.30799388]
[1739367612846,0.001,94283.0,94274.0,0.3608]
[1739367613045,0.00015909,94291.0,94282.0,0.3608]
[1739367613438,0.00015909,94291.0,94290.0,0.3608]
[1739367613744,0.00015909,94291.0,94282.0,0.3608]
[1739367613945,0.001,94283.0,94282.0,0.3608]
[1739367614439,0.00115909,94291.0,94282.0,0.3608]
[1739367615247,0.00115909,94291.0,94290.0,0.3608]
[1739367615546,0.00115909,94291.0,94282.0,0.30799388]
[1739367616045,0.001,94283.0,94282.0,0.30799388]
[1739367616439,0.2120487,94323.0,94282.0,0.30799388]
[1739367616650,0.29815353,94320.0,94296.0,0.3608]
[1739367616952,1.20096,94341.0,94282.0,0.30799388]
[1739367616953,0.2120964,94302.0,94282.0,0.30799388]
[1739367617149,0.001,94291.0,94282.0,0.30799388]
[1739367617444,0.001,94291.0,94290.0,0.3608]
[1739367617645,0.00015909,94296.0,94290.0,0.3608]
[1739367617852,0.00015909,94296.0,94295.0,0.3608]
[1739367618148,0.001,94320.0,94295.0,0.3608]
[1739367618350,0.001,94320.0,94303.0,0.3608]
[1739367618544,0.001,94320.0,94303.0,0.30799388]
[1739367618754,0.3608,94315.0,94293.0,0.3608]
[1739367618950,0.01,94300.0,94293.0,0.3608]
[1739367619154,0.01,94300.0,94296.0,0.3608]
[1739367620554,0.3608,94365.0,94306.0,0.3608]
[1739367620764,0.3608,94376.0,94340.0,0.3608]
[1739367620765,0.2119391,94372.0,94340.0,0.3608]
[1739367620955,0.2514,94384.0,94340.0,0.3608]
[1739367621153,0.2514,94384.0,94368.0,0.3608]
[1739367621445,0.3608,94395.0,94365.0,0.3608]
[1739367621653,0.21030138,94383.0,94365.0,0.30799388]
[1739367621856,0.21030138,94383.0,94382.0,0.7216]
[1739367622058,0.21030138,94383.0,94368.0,0.3608]
[1739367622350,0.21030138,94383.0,94359.0,0.000159]
[1739367622750,0.29815353,94380.0,94359.0,0.000159]
[1739367622955,0.21030138,94383.0,94359.0,0.000159]
[1739367623152,0.21130138,94383.0,94363.0,0.3608]
[1739367623455,0.29815353,94380.0,94363.0,0.3608]
[1739367623644,0.3608,94373.0,94359.0,0.000159]
[1739367623844,0.3608,94360.0,94359.0,0.000159]
[1739367624242,0.29815353,94370.0,94359.0,0.000159]
[1739367624448,0.3608,94364.0,94359.0,0.000159]
[1739367624654,0.2119901,94350.0,94315.0,0.3608]
[1739367624958,0.3608,94346.0,94315.0,0.3608]
[1739367625258,0.3608,94337.0,94315.0,0.3608]
[1739367625442,0.3538,94317.0,94304.0,0.3608]
[1739367625858,0.3608,94305.0,94301.0,0.000159]
[1739367626247,0.3538,94305.0,94301.0,0.000159]
[1739367626754,0.3538,94305.0,94304.0,0.007]
[1739367627153,0.3548,94317.0,94304.0,0.007]
[1739367627357,0.001,94317.0,94304.0,0.007]
[1739367627552,0.001,94317.0,94309.0,0.3608]
[1739367627745,0.001,94317.0,94312.0,0.3608]
[1739367627950,0.3608,94355.0,94312.0,0.3608]
[1739367628153,0.2119292,94377.0,94336.0,0.3608]
[1739367628350,0.3608,94364.0,94336.0,0.3608]
[1739367629060,0.3608,94364.0,94355.0,0.3608]
[1739367629260,0.3608,94364.0,94341.0,0.000159]
[1739367629452,0.3608,94364.0,94354.0,0.3608]
[1739367629653,0.2119275,94377.0,94363.0,0.3608]
[1739367629959,0.3608,94389.0,94363.0,0.3608]
[1739367630159,0.2118931,94393.0,94373.0,0.3608]
[1739367630659,0.3608,94392.0,94367.0,0.000159]
[1739367631048,0.2118974,94391.0,94367.0,0.000159]
[1739367631359,0.3608,94378.0,94367.0,0.000159]
[1739367631556,0.2119014,94389.0,94367.0,0.000159]
[1739367631757,0.2119014,94389.0,94370.0,0.3608]
[1739367632153,0.3608,94392.0,94370.0,0.3608]
[1739367632554,0.29815353,94390.0,94370.0,0.3608]
[1739367632856,0.3608,94383.0,94373.0,0.007]
[1739367633157,0.3608,94383.0,94367.0,0.000159]
[1739367633357,0.3608,94383.0,94370.0,0.007]
[1739367633762,0.3608,94373.0,94358.0,0.3608]
[1739367634063,0.3608,94373.0,94370.0,0.007]
[1739367634763,0.5727372,94373.0,94370.0,0.007]
[1739367635262,0.3608,94373.0,94362.0,0.000159]
[1739367635459,0.2119791,94354.0,94331.0,0.3608]
[1739367635651,0.3608,94333.0,94321.0,0.3608]
[1739367635856,0.5736006,94345.0,94321.0,0.3608]
[1739367636060,0.3608,94345.0,94321.0,0.3608]
[1739367636256,0.3608,94345.0,94330.0,0.29815353]
[1739367636456,0.3608,94345.0,94321.0,0.3608]
[1739367636656,0.3608,94335.0,94321.0,0.3608]
[1739367636858,0.001,94333.0,94328.0,0.000159]
[1739367637056,0.3518,94335.0,94328.0,0.000159]
[1739367637259,0.3608,94333.0,94328.0,0.000159]
[1739367637463,0.2120352,94329.0,94328.0,0.000159]
[1739367637763,0.2120913,94305.0,94302.0,0.00159019]
[1739367637964,0.2121061,94298.0,94268.0,0.3608]
[1739367638166,0.3608,94288.0,94268.0,0.3608]
[1739367638363,0.3608,94269.0,94251.0,0.3608]
[1739367638558,0.3608,94277.0,94251.0,0.3608]
[1739367638759,0.3608,94288.0,94260.0,0.29815353]
[1739367638960,0.3608,94288.0,94270.0,0.29815353]
[1739367639165,0.3608,94308.0,94281.0,0.3608]
[1739367639368,0.3608,94308.0,94289.0,0.3608]
[1739367639763,0.3608,94308.0,94300.0,0.30799388]
[1739367639964,0.3608,94308.0,94298.0,0.29815353]
[1739367640271,0.36095909,94313.0,94298.0,0.29815353]
[1739367640461,0.001,94308.0,94298.0,0.29815353]
[1739367640662,0.001,94308.0,94298.0,0.59815353]
[1739367640876,0.29815353,94360.0,94298.0,0.59815353]
[1739367640877,0.3608,94334.0,94307.0,0.3608]
[1739367641172,0.3608,94348.0,94320.0,0.29815353]
[1739367641370,0.3608,94333.0,94317.0,0.3608]
[1739367641672,0.3608,94348.0,94320.0,0.29815353]
[1739367641860,0.3608,94348.0,94317.0,0.3608]
[1739367642370,0.00015909,94343.0,94325.0,0.00015909]
[1739367642572,0.00015909,94343.0,94327.0,0.3608]
[1739367642770,0.00015909,94343.0,94330.0,0.24534741]
[1739367642972,0.00015909,94343.0,94330.0,0.29815353]
[1739367643168,0.3608,94378.0,94341.0,0.3608]
[1739367643371,0.3608,94378.0,94350.0,0.65895353]
[1739367643681,0.3608,94378.0,94362.0,0.3608]
[1739367643862,0.3608,94397.0,94371.0,0.3608]
[1739367644068,0.18150664,94379.0,94371.0,0.3608]
[1739367644567,0.18150664,94379.0,94375.0,0.000159]
[1739367645367,0.3608,94377.0,94375.0,0.000159]
[1739367645766,0.3608,94377.0,94338.0,0.4063]
[1739367645972,0.3608,94347.0,94320.0,0.29815353]
[1739367646270,0.3608,94347.0,94330.0,0.29815353]
[1739367646468,0.3608,94347.0,94336.0,0.3608]
[1739367646677,0.3608,94347.0,94317.0,0.22426877]
[1739367646678,0.3608,94337.0,94317.0,0.01220707]
[1739367646869,0.3608,94337.0,94317.0,0.00159016]
[1739367647178,0.3608,94318.0,94317.0,0.00159016]
[1739367647371,0.3608,94328.0,94317.0,0.00159016]
[1739367647671,0.3608,94337.0,94318.0,0.000159]
[1739367648073,0.3608,94328.0,94318.0,0.000159]
[1739367648276,0.3608,94319.0,94318.0,0.000159]
[1739367648778,0.3608,94319.0,94308.0,0.25130465]
[1739367648972,0.2120956,94303.0,94293.0,0.2613247]
[1739367649177,0.3538,94294.0,94293.0,0.2613247]
[1739367649763,0.3468,94294.0,94293.0,0.2613247]
[1739367649979,0.3468,94294.0,94293.0,0.01052893]
[1739367650272,0.3478,94294.0,94293.0,0.01752893]
[1739367650673,0.3478,94294.0,94284.0,0.000159]
[1739367650870,0.3608,94285.0,94284.0,0.000159]
[1739367652068,0.3608,94285.0,94270.0,0.29815353]
[1739367652265,0.3608,94285.0,94258.0,0.3608]
[1739367652266,0.3608,94272.0,94260.0,0.29815353]
[1739367652662,0.3608,94272.0,94260.0,0.59815353]
[1739367652866,0.3608,94272.0,94260.0,0.29815353]
[1739367653169,0.3608,94272.0,94260.0,0.59815353]
[1739367653371,0.3608,94272.0,94260.0,0.29815353]
[1739367653579,0.3618,94272.0,94258.0,0.3608]
[1739367654072,0.3608,94272.0,94258.0,0.3608]
[1739367654277,0.3618,94272.0,94258.0,0.3608]
[1739367654575,0.3608,94259.0,94257.0,0.00015909]
[1739367654973,0.3608,94259.0,94221.0,0.84024]
[1739367655177,0.3608,94239.0,94230.0,0.29815353]
[1739367655374,0.3608,94231.0,94221.0,0.84016]
[1739367655577,0.3608,94223.0,94206.0,0.00064]
[1739367655774,0.33628242,94223.0,94210.0,0.29815353]
[1739367656076,0.31209242,94223.0,94210.0,0.29815353]
[1739367656463,0.31209242,94223.0,94207.0,0.00015918]
[1739367657078,0.31309242,94223.0,94207.0,0.00015918]
[1739367657575,0.31209242,94223.0,94207.0,0.00015918]
[1739367657779,0.31309242,94223.0,94207.0,0.00015918]
[1739367658081,0.31309242,94223.0,94205.0,0.30815306]
[1739367658875,0.31309242,94223.0,94210.0,0.29815353]
[1739367659265,0.001,94223.0,94213.0,0.3608]
[1739367659469,0.3608,94238.0,94222.0,0.3608]
[1739367659664,0.3608,94238.0,94228.0,0.29815353]
[1739367660077,0.3608,94256.0,94231.0,0.3608]
[1739367660279,0.3608,94248.0,94231.0,0.3608]
[1739367660676,0.001,94238.0,94230.0,0.3608]
[1739367660878,0.3608,94237.0,94230.0,0.36095918]
[1739367661078,0.3608,94237.0,94230.0,0.00015918]
[1739367661280,0.001,94238.0,94230.0,0.00015918]
[1739367661877,0.3608,94248.0,94230.0,0.00015918]
[1739367661878,0.00015918,94249.0,94237.0,0.3608]
[1739367662081,0.3608,94265.0,94238.0,0.29815353]
[1739367662275,0.001,94256.0,94238.0,0.65895353]
[1739367662777,0.3608,94276.0,94253.0,0.2122054]
[1739367662972,0.3608,94267.0,94248.0,0.3608]
[1739367663174,0.3608,94257.0,94239.0,0.82684]
[1739367663481,0.3608,94249.0,94235.0,0.3608]
[1739367663672,0.3608,94249.0,94248.0,0.00015918]
[1739367664076,0.3608,94249.0,94222.0,0.3608]
[1739367664389,0.001,94256.0,94210.0,0.29815353]
[1739367664390,0.3608,94241.0,94213.0,0.3608]
[1739367664778,0.3608,94241.0,94220.0,0.29815353]
[1739367665075,0.001,94256.0,94237.0,0.3608]
[1739367665278,0.001,94256.0,94247.0,0.3608]
[1739367665587,0.001,94257.0,94247.0,0.3608]
[1739367665883,0.3608,94255.0,94237.0,0.3608]
[1739367666182,0.3608,94255.0,94243.0,0.00015918]
[1739367666582,0.3608,94256.0,94243.0,0.00015918]
[1739367667178,0.3608,94248.0,94237.0,0.003]
[1739367667379,0.3608,94239.0,94237.0,0.003]
[1739367669090,0.3608,94248.0,94232.0,0.3608]
[1739367669479,0.36095918,94261.0,94242.0,0.3608]
[1739367669683,0.36095918,94261.0,94237.0,0.003]
[1739367669978,0.3608,94243.0,94237.0,0.003]
[1739367670186,0.3608,94243.0,94222.0,0.312745]
[1739367670385,0.3608,94243.0,94220.0,0.3608]
[1739367670586,0.3608,94235.0,94220.0,0.3608]
[1739367670782,0.3608,94235.0,94213.0,0.01070643]
[1739367670988,0.3608,94227.0,94203.0,1.03859195]
[1739367671189,0.3608,94227.0,94203.0,0.78675195]
[1739367671485,0.00015918,94225.0,94206.0,0.00010644]
[1739367671685,0.16655658,94227.0,94206.0,0.00010644]
[1739367672285,0.16655658,94227.0,94218.0,0.3608]
[1739367672480,0.3608,94248.0,94218.0,0.3608]
[1739367672887,0.001,94227.0,94218.0,0.3608]
[1739367673385,0.3608,94230.0,94205.0,0.3608]
[1739367673586,0.001,94227.0,94205.0,0.3608]
[1739367674188,0.001,94227.0,94200.0,0.1]
[1739367674189,0.3608,94210.0,94200.0,0.1]
[1739367674690,0.3608,94210.0,94207.0,0.00010644]
[1739367675190,0.00015918,94214.0,94207.0,0.30010644]
[1739367675379,0.00015918,94214.0,94207.0,0.00010644]
[1739367676186,0.3608,94208.0,94207.0,0.00010644]
[1739367676392,0.3608,94208.0,94200.0,0.04730032]
[1739367677389,0.3618,94208.0,94200.0,0.04730032]
[1739367678093,0.001,94208.0,94200.0,0.04730032]
[1739367678995,0.3608,94207.0,94200.0,0.04730032]
[1739367679189,0.001,94208.0,94200.0,0.04730032]
[1739367679492,0.3618,94208.0,94185.0,0.3552942]
[1739367679801,0.3608,94200.0,94185.0,0.3552942]
[1739367680183,0.3608,94200.0,94190.0,0.29815353]
[1739367680388,0.3618,94208.0,94190.0,0.29815353]
[1739367680691,0.3618,94208.0,94185.0,0.3552942]
[1739367682096,0.001,94200.0,94185.0,0.3552942]
[1739367682486,0.3608,94208.0,94185.0,0.30248808]
[1739367682687,0.3618,94208.0,94185.0,0.30248808]
[1739367683193,0.001,94200.0,94185.0,0.30248808]
[1739367683698,0.4608,94208.0,94185.0,0.30248808]
[1739367683995,0.4618,94208.0,94185.0,0.30248808]
[1739367685294,0.4608,94208.0,94185.0,0.30248808]
[1739367685500,0.3618,94200.0,94185.0,0.24968196]
[1739367685991,0.3608,94200.0,94185.0,0.24968196]
[1739367686301,0.3608,94190.0,94180.0,0.01079102]
[1739367686489,0.3608,94190.0,94161.0,0.2124113]
[1739367686792,0.3608,94190.0,94171.0,0.01088836]
[1739367687000,0.3608,94181.0,94171.0,0.000125]
[1739367687495,0.3608,94172.0,94166.0,0.0003991]
[1739367687695,0.3608,94170.0,94166.0,0.0003991]
[1739367688492,0.3608,94170.0,94145.0,0.0497104]
[1739367688697,0.3608,94149.0,94145.0,0.0497104]
[1739367689394,0.6608,94149.0,94131.0,0.3608]
[1739367689587,0.3608,94138.0,94124.0,0.0001]
[1739367689795,0.83056,94148.0,94124.0,0.0001]
[1739367690101,0.65895353,94140.0,94124.0,0.0001]
[1739367690498,0.3608,94132.0,94124.0,0.0001]
[1739367690799,0.36152,94140.0,94124.0,0.0001]
[1739367690989,0.8298,94148.0,94124.0,0.0001]
[1739367690990,0.00072,94148.0,94137.0,0.3608]
[1739367691299,0.3608,94150.0,94137.0,0.3608]
[1739367691496,0.001,94149.0,94137.0,0.30799388]
[1739367691998,0.001,94140.0,94124.0,0.0001]
[1739367692503,0.001,94140.0,94130.0,0.29815353]
[1739367692702,0.001,94140.0,94124.0,0.0001]
[1739367693103,0.3608,94144.0,94124.0,0.0001]
[1739367693309,0.001,94149.0,94124.0,0.0001]
[1739367693699,0.3608,94144.0,94116.0,0.19743485]
[1739367694292,0.3608,94144.0,94113.0,0.3608]
[1739367694504,0.3608,94144.0,94113.0,0.30799388]
[1739367694808,0.3608,94136.0,94113.0,0.31880724]
[1739367695606,0.3608,94126.0,94113.0,0.31880724]
[1739367696300,0.3608,94126.0,94100.0,0.39815353]
[1739367696500,0.3608,94126.0,94110.0,0.29815353]
[1739367697195,0.3608,94126.0,94113.0,0.3608]
[1739367697507,0.18130495,94126.0,94113.0,0.30799388]
[1739367697910,0.18230495,94126.0,94113.0,0.30799388]
[1739367698607,0.3608,94114.0,94105.0,0.01086851]
[1739367698811,0.3608,94114.0,94100.0,0.39815353]
[1739367699203,0.3608,94114.0,94100.0,0.40884948]
[1739367700607,0.00015936,94116.0,94104.0,0.30799388]
[1739367700803,0.001,94114.0,94104.0,0.30799388]
[1739367701610,0.001,94114.0,94100.0,0.40884948]
[1739367701812,0.00015936,94116.0,94105.0,0.0042]
[1739367702002,0.001,94114.0,94105.0,0.0042]
[1739367702416,0.001,94114.0,94106.0,0.3608]
[1739367702916,0.001,94114.0,94111.0,0.2125254]
[1739367703106,0.001,94114.0,94107.0,0.3608]
[1739367703300,0.00015936,94116.0,94111.0,0.0085]
[1739367703508,0.00015936,94116.0,94115.0,0.3608]
[1739367703813,0.00015936,94116.0,94115.0,0.30799388]
[1739367704013,0.00115936,94116.0,94115.0,0.30799388]
[1739367704211,0.3608,94126.0,94111.0,0.0085]
[1739367704413,0.3608,94161.0,94130.0,0.2124826]
[1739367704605,0.3608,94161.0,94140.0,0.29815353]
[1739367705104,0.3608,94161.0,94141.0,0.04597]
[1739367705309,0.3608,94172.0,94160.0,0.3608]
[1739367705614,0.3608,94164.0,94142.0,0.39795936]
[1739367705915,0.3608,94164.0,94142.0,0.42450936]
[1739367706219,0.3608,94156.0,94142.0,0.02670936]
[1739367706399,0.3608,94164.0,94147.0,0.3608]
[1739367706603,0.3608,94155.0,94141.0,0.03068198]
[1739367706914,0.33354745,94164.0,94150.0,0.3608]